Cogmind - Beta 14 @@@ ROGUE MODE // 2024.09.03 @ 15:09:10 Player: N.W.L Result: Destroyed by P1-3CE with P1-3CE's Gatling Flakker Performance ------------- Evolutions (1) 500 Regions Visited (6) 1200 Robots Destroyed (126) 630 Value Destroyed (2401) 2401 Prototype IDs (42) 840 Alien Tech Used (0) 0 Bonus (193) 193 TOTAL SCORE: 5764 Bonus ------- High Alert Combat Kills 98 Follower Combat Kills 145 Aligned with FarCom 300 Friendly Fire -350 Cogmind --------- Core Integrity 0/400 Matter 233/300 Energy 280/280 System Corruption 4% Temperature Cool (0) Movement Treading (235) Ox1 Location -8/Mines Parts ------- > --- POWER (1) -------- Cooled Ion Engine > --- PROPULSION (3) --- Light Treads Light Treads Advanced Treads > --- UTILITY (2) ------ Huge Storage Unit Improved Armor Integrity Analyzer > --- WEAPON (3) ------- Heavy Assault Rifle Improved Assault Rifle 8R-AWN's Boregun > --- INVENTORY (25) --- Cooled Ion Engine Light Treads Light Treads High-capacity Storage Unit High-capacity Matter Pod (136) High-capacity Matter Pod (0) Machine Analyzer Experimental Sensor Array Advanced Targeting Computer Experimental Core Analyzer Advanced Transmission Jammer Reflective Plating EX Chip 1 EX Chip 1 System Purifier Trap Extractor (0/4) Improved Assault Rifle Improved Light Cannon Grenade Launcher Rocket Launcher Datajack Heavy Flail Peak State ------------ > --- POWER ------------ Cooled Ion Engine > --- PROPULSION ------- Light Treads Light Treads Advanced Treads > --- UTILITY ---------- Huge Storage Unit Reflective Plating > --- WEAPON ----------- Heavy Assault Rifle Improved Assault Rifle 8R-AWN's Boregun > --- INVENTORY -------- Cooled Ion Engine Light Treads Advanced Myomer Leg High-capacity Storage Unit High-capacity Matter Pod High-capacity Matter Pod High-capacity Matter Pod Machine Analyzer Experimental Sensor Array Advanced Targeting Computer Advanced Launcher Guidance Computer Experimental Core Analyzer Improved Armor Integrity Analyzer Advanced Transmission Jammer Reflective Plating System Purifier YOLO Cannon Improved Assault Rifle Improved Light Cannon Grenade Launcher Rocket Launcher Datajack Heavy Flail Deploy-a-Sentry [Rating: 38] Favorites ----------- Power Cooled Ion Engine Engine Cooled Ion Engine Propulsion Light Treads Treads Light Treads Leg Aluminum Leg Utility Huge Storage Unit Device Seismic Detector Storage Huge Storage Unit Processor Improved Armor Integrity Analyzer Hackware Hacking Suite Protection Light Armor Plating Weapon Heavy Assault Rifle Energy Gun Medium Laser Energy Cannon Advanced Beam Cannon Ballistic Gun Heavy Assault Rifle Ballistic Cannon Improved Light Cannon Launcher Grenade Launcher Impact Weapon Heavy Flail Slashing Weapon Makeshift Axe Special Melee Weapon Datajack Build | -11 -10 -10 -9 -9 -9 -8 ------- Run | Yrd Mat Min Mat Min Exi Min Slots Evolved 2 | . . . 2 . . . Power . | . . . . . . . Propulsion 1 | . . . 1 . . . Utility . | . . . . . . . Weapon 1 | . . . 1 . . . Parts Attached 98 | . 22 6 36 5 26 3 Power 5 | . 1 . 3 . 1 . Engine 5 | . 1 . 3 . 1 . Core . | . . . . . . . Reactor . | . . . . . . . Propulsion 18 | . 5 . 7 1 4 1 Treads 18 | . 5 . 7 1 4 1 Leg . | . . . . . . . Wheel . | . . . . . . . Hover . | . . . . . . . Flight . | . . . . . . . Utility 20 | . 3 2 7 . 7 1 Device 1 | . . 1 . . . . Storage 7 | . 2 1 . . 4 . Processor 3 | . . . 2 . . 1 Hackware 1 | . . . 1 . . . Protection 8 | . 1 . 4 . 3 . Artifact . | . . . . . . . Weapon 55 | . 13 4 19 4 14 1 Energy Gun 1 | . . . 1 . . . Energy Cannon 1 | . . . 1 . . . Ballistic Gun 29 | . 3 3 13 1 8 1 Ballistic Cannon 10 | . 7 . 1 2 . . Launcher 4 | . . . 1 1 2 . Special Weapon . | . . . . . . . Impact Weapon 7 | . 3 1 . . 3 . Slashing Weapon 2 | . . . 2 . . . Piercing Weapon . | . . . . . . . Special Melee Weapon 1 | . . . . . 1 . Unidentified Prototypes 5 | . . . 5 . . . Parts Lost 8 | . . . 3 . 4 1 Power . | . . . . . . . Propulsion 5 | . . . 2 . 2 1 Utility 2 | . . . 1 . 1 . Weapon 1 | . . . . . 1 . Highest Loss Streak 4 | . . . 2 . 4 1 To Critical Strikes 3 | . . . . . 3 . Average Slot Usage (%) 98 | . 99 100 99 100 92 100 Engine 12 | . 14 14 11 11 11 11 Treads 30 | . 27 28 32 33 33 33 Device 1 | . . 10 . . . . Storage 12 | . 15 14 11 11 10 11 Hackware 2 | . . . 1 11 2 . Protection 7 | . 12 3 8 . 8 8 Ballistic Gun 18 | . 3 23 31 14 15 33 Ballistic Cannon 7 | . 20 4 . 17 . . Impact Weapon 1 | . 1 . . . 4 . Peak Build Rating 38 | . 12 13 29 26 38 38 Average Rating 19 | . 10 12 24 25 26 35 On Entrance 16 | 6 6 12 13 26 26 29 Naked Turns . | . . . . . . . Heaviest Build 104 | 12 56 92 102 100 104 104 Greatest Support 66 | 20 40 40 66 64 66 62 Greatest Overweight (x) 2 | . 1 2 2 1 1 1 Average Overweight (x) . | . . 1 1 1 . 1 Largest Inventory Capacity 25 | . 20 25 25 25 25 25 Average Capacity 22 | . 18 22 25 25 21 25 Most Carried 25 | . 20 25 25 25 25 25 Average Carried 21 | . 15 21 24 25 19 24 Final Capacity 25 | 8 20 25 25 25 25 25 Final Carried 25 | 6 20 25 25 25 25 22 Class Distribution -------------------- 54% | Mutant 29% | Tank 16% | Gunner Dominant Class ---------------- Mutant | -10/Materials Mutant | -10/Mines Tank | -9/Materials Gunner | -9/Mines Mutant | -9/Exiles Tank | -8/Mines Resources | -11 -10 -10 -9 -9 -9 -8 ----------- Run | Yrd Mat Min Mat Min Exi Min Matter Collected 4745 | 177 763 491 1390 174 1750 . Remotely . | . . . . . . . Salvage Created 4318 | . 717 418 2376 193 614 . Parts 345 | . 61 39 155 14 76 . Haulers Intercepted 8 | . 2 . 6 . . . Recyclers Shooed 5 | . 1 . 4 . . . Parts Field Recycled . | . . . . . . . Retrieved Matter . | . . . . . . . Parts Self-Destructed . | . . . . . . . Prevented . | . . . . . . . Kills | -11 -10 -10 -9 -9 -9 -8 ------- Run | Yrd Mat Min Mat Min Exi Min Combat Hostiles Destroyed 69 | . 16 8 35 5 5 . Guns 44 | . 4 5 31 1 3 . Cannons 16 | . 12 3 . 1 . . AOE 9 | . . . 4 3 2 . Classes Destroyed 15 | . 7 1 4 1 2 . Worker 10 | . 4 . 4 2 . . Builder 5 | . 2 . 1 2 . . Tunneler 6 | . 2 3 . 1 . . Hauler 8 | . 2 . 6 . . . Recycler 9 | . . 3 4 2 . . Mechanic 1 | . . . 1 . . . Operator 3 | . . . 3 . . . Turret 1 | . . . . . 1 . Watcher 7 | . 3 . 4 . . . Swarmer 15 | . 1 6 4 4 . . Grunt 39 | . 15 2 22 . . . Duelist 1 | . . . 1 . . . Sentry 10 | . . . 10 . . . Zionite 8 | . . . . . 8 . Assembled 5 | . . . . 1 4 . Best Kill Streak 8 | . 4 4 8 8 4 . Combat Bots Only 7 | . 3 3 7 4 3 . Max Kills in Single Turn 3 | . 1 2 2 3 1 . Gunslinging 1 | . . . 1 . . . Exploded 2 | . . . 2 2 1 . Melee . | . . . . . . . Uniques/NPCs Destroyed 4 | . . . . . 4 . 8R-AWN (-9/Exiles) EX-HEX (-9/Exiles) EX-BIN (-9/Exiles) EX-DEC (-9/Exiles) Combat | -11 -10 -10 -9 -9 -9 -8 -------- Run | Yrd Mat Min Mat Min Exi Min Hostile Shots Fired 281 | . 49 27 98 15 68 24 Missed 80 | . 14 4 34 7 15 6 Damage Taken 2883 | . 374 198 876 116 920 399 Core 476 | . 35 31 106 . 196 108 Absorbed by Shields . | . . . . . . . Ignored by Resistances 19 | . . . 18 . 1 . Regen/Repaired (Parts) 275 | . 70 . 205 . . . Core Remaining (%) 86 | 100 . 73 . . . . Volleys Fired 317 | . 56 28 109 12 107 5 Largest 3 | . 2 2 3 3 3 3 Hottest 101 | . 78 78 69 101 76 76 Shots Fired 704 | . 114 57 320 26 178 9 Gun 611 | . 48 47 316 16 175 9 Cannon 84 | . 66 10 2 6 . . Launcher 9 | . . . 2 4 3 . Special . | . . . . . . . Kinetic 677 | . 96 57 318 22 175 9 Thermal 18 | . 18 . . . . . Explosive 9 | . . . 2 4 3 . Electromagnetic . | . . . . . . . Robot Hit Streak 48 | . 24 7 11 12 48 5 Robot Miss Streak 12 | . 3 4 12 2 6 2 Penetration Max 1 | . . . . . 1 . Secondary Targets 7 | . . . 7 . . . Max Gunslinging Chain 2 | . . . 2 . . . Shots Hit Robots 432 | . 69 27 196 12 121 7 Core Hits 196 | . 35 16 87 15 39 4 Critical Kills 7 | . . . . . 7 . Critical Parts Destroyed 17 | . . . 2 . 14 1 Critical Strikes 28 | . 4 . 2 . 21 1 Burn 1 | . 1 . . . . . Destroy 24 | . . . 2 . 21 1 Blast 3 | . 3 . . . . . Melee Attacks 40 | . 9 . 13 . 18 . Impact 24 | . 9 . . . 15 . Slashing 13 | . . . 13 . . . Piercing . | . . . . . . . Sneak Attacks 4 | . . . 1 . 3 . Combat Hostiles . | . . . . . . . Follow-up Attacks . | . . . . . . . Damage Inflicted 8364 | . 1238 598 3594 588 2264 82 Guns 6452 | . 444 466 3250 117 2093 82 Cannons 990 | . 794 132 . 64 . . Explosions 816 | . . . 238 407 171 . Melee 106 | . . . 106 . . . Ramming . | . . . . . . . Kinetic 7314 | . 1110 598 3250 181 2093 82 Thermal 128 | . 128 . . . . . Explosive 816 | . . . 238 407 171 . Electromagnetic . | . . . . . . . Impact . | . . . . . . . Slashing 106 | . . . 106 . . . Piercing . | . . . . . . . Highest Corruption 4 | . 1 1 4 4 4 4 Average Corruption 2 | . 1 1 3 4 4 4 Corruption Purged . | . . . . . . . Corruption Blocked . | . . . . . . . Effects 138 | . 18 10 35 23 51 1 Message Errors 34 | . 3 3 9 4 14 1 Matter Fused 38 | . 8 3 9 5 13 . Heat Flow Errors 16 | . 1 1 5 2 7 . Energy Discharges 14 | . 1 . 3 4 6 . Parts Rejected 1 | . . . . . 1 . Parts Fused 1 | . . . . . 1 . Data Loss (minor) 16 | . 3 2 4 5 2 . Data Loss (major) 5 | . . . . 1 4 . Misfires 7 | . 2 1 3 . 1 . Alerts 3 | . . . . 1 2 . Weapon Failures 3 | . . . 2 1 . . Overload Shots . | . . . . . . . Overflow Damage 109 | . 14 3 53 37 2 . Projectiles 18 | . 14 3 . 1 . . Explosions 91 | . . . 53 36 2 . Melee . | . . . . . . . Knockbacks 8 | . 5 1 . 2 . . Impact . | . . . . . . . Kinetic 8 | . 5 1 . 2 . . Secondary . | . . . . . . . Self-Inflicted Damage 51 | . . . . 46 5 . Shots 2 | . . . . 1 1 . Rammed . | . . . . . . . Targets Rammed . | . . . . . . . Kicked . | . . . . . . . Crushed . | . . . . . . . Highest Temperature 279 | . 195 261 230 207 279 . Average Temperature 53 | . 53 78 34 59 81 . Received Heat Transfer 530 | . 180 18 312 . 20 . Siege Activations . | . . . . . . . Robots Corrupted . | . . . . . . . Combat Hostiles . | . . . . . . . Parts Fried . | . . . . . . . Impact Corruptions . | . . . . . . . Robots Melted . | . . . . . . . Combat Hostiles . | . . . . . . . Parts Melted 1 | . 1 . . . . . Heat Transferred 444 | . 444 . . . . . Parts Sabotaged . | . . . . . . . Parts Stolen . | . . . . . . . Parts Stripped . | . . . . . . . Power Chain Reactions . | . . . . . . . Alert | -11 -10 -10 -9 -9 -9 -8 ------- Run | Yrd Mat Min Mat Min Exi Min Peak Influence 547 | . 240 168 547 334 . . Initial 202 | . . 93 . 202 . . Average 179 | . 71 43 367 129 . . Maximum Alert Level 2 | . 1 . 2 1 . . Low Security (%) 58 | . 90 100 6 63 . 100 Level 1 23 | . 9 . 45 36 . . Level 2 17 | . . . 48 . . . Level 3 . | . . . . . . . Level 4 . | . . . . . . . Level 5 . | . . . . . . . High Security . | . . . . . . . Max Security . | . . . . . . . Squads Dispatched 11 | . 6 . 5 . . . Investigation 9 | . 6 . 3 . . . Extermination . | . . . . . . . Reinforcement 2 | . . . 2 . . . Assault . | . . . . . . . Garrison . | . . . . . . . Intercept . | . . . . . . . Searches Triggered . | . . . . . . . Construction Impeded . | . . . . . . . Haulers Reinforced . | . . . . . . . Active Scanning Responses . | . . . . . . . Cargo Convoy Interrupts . | . . . . . . . Stealth | -11 -10 -10 -9 -9 -9 -8 --------- Run | Yrd Mat Min Mat Min Exi Min Distress Signals 2 | . 1 . 1 . . . Communications Jammed . | . . . . . . . Distress Signals . | . . . . . . . Times Spotted 100 | . 24 8 47 5 15 1 Peak Tracking Total 9 | . 6 3 6 4 9 1 Tactical Retreats 8 | . 4 . . . 4 . Traps | -11 -10 -10 -9 -9 -9 -8 ------- Run | Yrd Mat Min Mat Min Exi Min Traps Triggered 4 | . 2 . 2 . . . Indirectly . | . . . . . . . Trap Hack Attempts . | . . . . . . . Triggered . | . . . . . . . Disarmed . | . . . . . . . Reprogrammed . | . . . . . . . Reused 4 | . . . . . 4 . Traps Extracted . | . . . . . . . Installed 4 | . . . . . 4 . Triggered . | . . . . . . . Most Traps Carried 4 | . . 4 4 4 4 . Machines | -11 -10 -10 -9 -9 -9 -8 ---------- Run | Yrd Mat Min Mat Min Exi Min Machines Disabled 22 | . 2 . 4 . 16 . Max in Single Turn 1 | . 1 . 1 . 1 . Machines Repaired . | . . . . . . . Machines Dismantled . | . . . . . . . Machines Sabotaged . | . . . . . . . Overloaded Fab Kills . | . . . . . . . Hacking | -11 -10 -10 -9 -9 -9 -8 --------- Run | Yrd Mat Min Mat Min Exi Min Machines Accessed 25 | . 10 . 13 . 2 . Terminals 15 | . 7 . 8 . . . Fabricators . | . . . . . . . Repair Stations 3 | . 1 . 2 . . . Recycling Units 4 | . 2 . 2 . . . Scanalyzers 1 | . . . 1 . . . Garrison Access . | . . . . . . . Total Hacks 91 | . 42 . 44 . 5 . Successful 46 | . 21 . 20 . 5 . Failed 43 | . 20 . 23 . . . Catastrophic 6 | . 3 . 3 . . . Database Lockouts 2 | . 1 . 1 . . . Manual 48 | . 29 . 18 . 1 . Terminals 60 | . 32 . 28 . . . Fabricators . | . . . . . . . Repair Stations 11 | . 5 . 6 . . . Recycling Units 12 | . 5 . 7 . . . Scanalyzers 3 | . . . 3 . . . Garrison Access . | . . . . . . . Terminal Hacks 20 | . 5 . 10 . 5 . Record 4 | . . . . . 4 . Robot Analysis 4 | . 2 . 2 . . . Prototype ID Bank 1 | . . . 1 . . . Branch Access Points 2 | . 1 . 1 . . . Terminal Index 1 | . 1 . . . . . Repair Station Index 1 | . . . 1 . . . Scanalyzer Index 1 | . . . 1 . . . Alert Level 1 | . . . 1 . . . Unreport Threat 1 | . . . 1 . . . Locate Traps 2 | . 1 . 1 . . . Zone Layout 1 | . . . 1 . . . Derelict Proto ID Bank 1 | . . . . . 1 . Fabricator Hacks . | . . . . . . . Repair Station Hacks 5 | . 3 . 2 . . . Scan Component 4 | . 2 . 2 . . . Repair 1 | . 1 . . . . . Recycling Unit Hacks 3 | . 1 . 2 . . . Retrieve Matter 1 | . . . 1 . . . Retrieve Components 2 | . 1 . 1 . . . Scanalyzer 2 | . . . 2 . . . Insert Component 1 | . . . 1 . . . Analyze 1 | . . . 1 . . . Garrison Access Hacks . | . . . . . . . Unauthorized Hacks 15 | . 11 . 4 . . . Terminals 10 | . 8 . 2 . . . Botnet 2 | . 1 . 1 . . . Operators 2 | . 1 . 1 . . . Skim 6 | . 6 . . . . . Fabricators . | . . . . . . . Repair Stations 2 | . 1 . 1 . . . Patch 2 | . 1 . 1 . . . Recycling Units 3 | . 2 . 1 . . . Tunnel 3 | . 2 . 1 . . . Scanalyzers . | . . . . . . . Garrison Access . | . . . . . . . Data Cores Recovered . | . . . . . . . Used . | . . . . . . . Hacking Detections 21 | . 9 . 12 . . . Full Trace Events 6 | . 5 . 1 . . . Feedback Events 1 | . 1 . . . . . Corruption 1 | . 1 . . . . . Feedback Blocked . | . . . . . . . Robot Schematics Acquired . | . . . . . . . Robots Built . | . . . . . . . Authchips . | . . . . . . . Time . | . . . . . . . Total Robot Build Rating . | . . . . . . . Part Schematics Acquired . | . . . . . . . Parts Built . | . . . . . . . Authchips . | . . . . . . . Time . | . . . . . . . Total Part Build Rating . | . . . . . . . Parts Repaired 1 | . 1 . . . . . Time 26 | . 26 . . . . . Parts Recycled . | . . . . . . . Recycled Matter . | . . . . . . . Retrieved Matter . | . . . . . . . Retrieved Components 9 | . 9 . . . . . Parts Scanalyzed 1 | . . . 1 . . . Part Schematics Acquired . | . . . . . . . Parts Damaged . | . . . . . . . Bothacking | -11 -10 -10 -9 -9 -9 -8 ------------ Run | Yrd Mat Min Mat Min Exi Min Used RIF Installer . | . . . . . . . Robots Hacked 3 | . . . . . 3 . Non-combat 2 | . . . . . 2 . Combat 1 | . . . . . 1 . Robot Hacks Applied 3 | . . . . . 3 . parse_system 3 | . . . . . 3 . Relay Couplers Released . | . . . . . . . Fabnet Peak Effective % . | . . . . . . . Robots Rewired . | . . . . . . . Allies Hacked . | . . . . . . . Hacks Repelled . | . . . . . . . Allies | -11 -10 -10 -9 -9 -9 -8 -------- Run | Yrd Mat Min Mat Min Exi Min Total Allies 5 | . . 5 . . . . Largest Group 4 | . . 4 4 . . . Highest-Rated Group 71 | . . 71 71 . . . Highest-Rated Ally 31 | . . 31 31 . . . Total Orders . | . . . . . . . Ally Attacks 67 | . . 5 55 . . 7 Total Damage 992 | . . 85 660 . . 247 Kills 7 | . . 1 6 . . . Allies Corrupted . | . . . . . . . Allies Melted . | . . . . . . . Turrets Deployed 1 | . . . . . . 1 Intel | -11 -10 -10 -9 -9 -9 -8 ------- Run | Yrd Mat Min Mat Min Exi Min Robot Analysis Total 4 | . 2 . 2 . . . Derelict Logs Recovered 4 | . . 2 . 2 . . Drone Launches . | . . . . . . . Drone Recoveries . | . . . . . . . Exploration | -11 -10 -10 -9 -9 -9 -8 ------------- Run | Yrd Mat Min Mat Min Exi Min Turns Passed 11422 | . 2660 1862 3239 1087 2485 89 Spaces Moved 4205 | 1 929 585 1187 421 1055 27 Core . | . . . . . . . Treads 4188 | . 913 585 1187 421 1055 27 Legs 17 | 1 16 . . . . . Wheels . | . . . . . . . Hover . | . . . . . . . Flight . | . . . . . . . Fastest Speed 120 | 120 120 240 225 230 145 235 Average Speed 222 | 120 212 271 230 230 193 235 Slowest Speed 320 | 120 240 320 320 230 235 235 Overloaded Moves . | . . . . . . . Propulsion Burnouts . | . . . . . . . Robots Hopped . | . . . . . . . Cave-ins Triggered . | . . . . . . . Exploration Rate (%) 67 | 2 98 94 94 86 85 14 Regions Visited 6 Branch Regions 4 Pre-discovered Areas 6 | . 2 1 1 1 1 . Known Exits Taken 2 | . 1 . 1 . . . Unknown Exits Taken 4 | 1 . 1 . 1 1 . Scrap Searched 2 | . . 1 . 1 . . Spaces Dug 23 | . 6 . 11 . 6 . Terrain Destroyed 85 | . 10 . 37 21 16 1 Melee 18 | . 6 . 11 . 1 . Projectile 9 | . 4 . 1 . 3 1 AOE 56 | . . . 25 21 10 . Terrain Rammed . | . . . . . . . Walls Destroyed . | . . . . . . . Machines Disabled . | . . . . . . . Actions | -11 -10 -10 -9 -9 -9 -8 --------- Run | Yrd Mat Min Mat Min Exi Min Total 5629 | . 1484 805 1445 517 1334 44 Wait 782 | . 441 160 48 79 46 8 Move 4199 | . 928 584 1186 420 1054 27 Hop . | . . . . . . . Pick Up 91 | . 18 15 20 . 38 . Fast Attach 20 | . 3 1 12 . 4 . Attach 20 | . 1 . 6 . 12 1 Detach 8 | . 1 1 1 . 5 . Swap 58 | . 18 5 18 5 10 2 Drop 90 | . 9 11 32 1 36 1 Fire 317 | . 56 28 109 12 107 5 Melee 40 | . 9 . 13 . 18 . Ram . | . . . . . . . Kick . | . . . . . . . Crush . | . . . . . . . Escape Stasis . | . . . . . . . Rewire . | . . . . . . . Trap 4 | . . . . . 4 . Miscellaneous . | . . . . . . . Route ------- -11/Scrapyard -10/Materials (discovered 4 exits: *Mat x3 / *Min) -10/Mines (discovered 2 exits: *Mat x2) -9/Materials (discovered 5 exits: [*Mat x3] / *Min x2) -9/Mines (discovered 3 exits: [*Mat x2] / *Exi) -9/Exiles -8/Mines History --------- Turn | Location | Event 1 | -11/Scrapyard | Discovered new exit (range 0) 1 | -11/Scrapyard | Entered Materials 7 | -10/Materials | Central database locked down 86 | -10/Materials | Identified exit to Mines 186 | -10/Materials | Discovered new exit (range 3) 316 | -10/Materials | Build established: Mutant 550 | -10/Materials | Discovered new exit (range 5) 1176 | -10/Materials | Discovered new exit (range 9) 2160 | -10/Materials | Repaired Lgt. Treads 2661 | -10/Materials | Entered Mines 2874 | -10/Mines | Discovered new exit (range 7) 3261 | -10/Mines | Learned Materials terminal intel 3288 | -10/Mines | Found a damaged Exp. Sensor Array with a note attached 3293 | -10/Mines | Found Prototype Device 3388 | -10/Mines | Found a hidden stash of uninstalled traps 4156 | -10/Mines | Discovered new exit (range 6) 4294 | -10/Mines | Assisted by bots powering up and referring to "LRC-V3" 4387 | -10/Mines | Received a Rocket Launcher from a helpful Derelict 4523 | -10/Mines | Entered Materials 4523 | -9/Materials | Accompanied by 4 allies 4523 | -9/Materials | Evolved 2 slots: Propulsion x1, Weapon x1 4524 | -9/Materials | Loaded intel: 12 terminal locations 4528 | -9/Materials | Led the pair of lost Derelicts to an unsafe place 4960 | -9/Materials | Identified exit to Mines 4960 | -9/Materials | Central database locked down 5099 | -9/Materials | Build established: Tank 5214 | -9/Materials | Discovered new exit (range 14) 5668 | -9/Materials | Discovered new exit (range 14) 5791 | -9/Materials | Destroyed 7 combat bots 6421 | -9/Materials | Identified Exp. Sensor Array 6432 | -9/Materials | Discovered new exit (range 8) 7640 | -9/Materials | Build established: Gunner 7762 | -9/Materials | Entered Mines 7932 | -9/Mines | Assembled infested the area 8234 | -9/Mines | Discovered new exit (range 6) 8293 | -9/Mines | Discovered new exit (range 9) 8441 | -9/Mines | Found DCF Scrap (13 items) 8566 | -9/Mines | Learned Materials emergency access door positions 8593 | -9/Mines | Learned location of Storage (-8) 8686 | -9/Mines | Learned Materials emergency access door positions 8833 | -9/Mines | Discovered new exit (range 5) 8849 | -9/Mines | Entered Exiles 8905 | -9/Exiles | Met 8R-AWN 8984 | -9/Exiles | Met EX-HEX 9050 | -9/Exiles | Met EX-BIN 9136 | -9/Exiles | Aligned with FarCom system 9138 | -9/Exiles | Given EX-Vault access code 9199 | -9/Exiles | Build established: Mutant 9478 | -9/Exiles | Opened EX-Vault 9496 | -9/Exiles | Found YOLO Cannon 9550 | -9/Exiles | Warned to stay clear of 0b10 Research branches 9617 | -9/Exiles | Met EX-DEC 9631 | -9/Exiles | Learned location of Zion (-6) 9734 | -9/Exiles | Discovered new exit (range 10) 9884 | -9/Exiles | Warned about trapping Exiles lab 10294 | -9/Exiles | Attacked by the Exiles 10411 | -9/Exiles | Core integrity fell below 50% 10479 | -9/Exiles | Destroyed 8R-AWN 10484 | -9/Exiles | Found 8R-AWN's Boregun 10488 | -9/Exiles | Lost 4 parts (2n1u1w) 10520 | -9/Exiles | Build established: Tank 10731 | -9/Exiles | Destroyed EX-HEX 10884 | -9/Exiles | Destroyed EX-BIN 10945 | -9/Exiles | Destroyed EX-DEC 10950 | -9/Exiles | Found System Purifier 10956 | -9/Exiles | Found Prototype Processor 10969 | -9/Exiles | Found Deploy-a-Sentry 11334 | -9/Exiles | Left Exiles lab with Deploy-a-Sentry 11334 | -9/Exiles | Entered Mines 11392 | -8/Mines | DAS Turret deployed 11405 | -8/Mines | P1-3CE came to Exiles' defense 11410 | -8/Mines | Core integrity fell below 20% 11423 | -8/Mines | Destroyed by P1-3CE with P1-3CE's Gatling Flakker Last Messages --------------- 11392_ DAS Turret deployed. 11398_ K-01 Serf collects debris. 11403_ Discarded Reflective Plating. 11405_ P1-3CE: "I came as fast as I could... Wait, it was you!" 11405_ HV Slug penetrates P1-3CE. 11405_ HV Slug penetrates Wall. 11407_ HV Slug penetrates P1-3CE. 11407_ P1-3CE suffers critical hit (Destroy). 11407_ Destroyed Adv. Cooling System. 11407_ HV Slug penetrates Wall. 11408_ K-01 Serf collects debris. 11409_ HV Slug penetrates Wall. 11412_ K-01 Serf collects debris. 11412_ Lgt. Treads destroyed. 11415_ K1VMGPWZCQKBPSRKH&UIME7LW 11416_ HV Slug penetrates P1-3CE. 11416_ HV Slug penetrates Wall. 11418_ DAS Turret destroyed. 11420_ HV Slug penetrates P1-3CE. 11421_ K-01 Serf collects debris. Map ----- +----------------------------------------------------+ | ?????????????????????????????????????????????????? | | ?????????????????????????????????????????????????? | | ?????????????????????????????????????????????????? | | ?????????????????????????????????????????????????? | | ?????????????????????????????????????????????????? | | ?????????????????????????????????????????????????? | | ?????????????????????????????????????????????????? | | ?????????????????????????????????????????????????? | | ?????????????????????????????????????????????????? | | ?????????????????????????????????????????????????? | | ?????????????????????????????????????????????????? | | ?????????????????????????????????????????????????? | | ???????????????????????????????????????? ????????? | | ???????????????????????????##??????????? #???????? | | ??????????????????????????# ?? ??????# #???????? | | ??????????????????????????# #??# ?????# #???????? | | ??????????????????????????# #??# ???? #???????? | | ???????????????#??????????# #??# #?## #???????? | | ??????????????## ???????### #??# ## ###?????? | | ??????????????# =??????? #??# ?????? | | ??????????????# =???????# #### ??????? | | ?????????????## #??????# #? ???????? | | ????????????## %##????# ## #?? #???????? | | ? ## % ##??# ## #??# #???????? | | ? #### ## #??# ##??????? | | ?# k M @ ## #???# ##?????? | | ??# ;###### #????# #?????? | | ??# "?????# ###### #?????? | | ??# ### #?????# #?????? | | ??# "### ????## #?????####### ##?????? | | ???# ?????????????## #????????????## ##??????? | | ???????????????????###??????????????######???????? | | ?????????????????????????????????????????????????? | | ?????????????????????????????????????????????????? | | | | | | | | | | | | | | | | | | | | | | | | | | | | | | | | | +----------------------------------------------------+ Best States ------------- Heat Dissipation 28 Energy Generation 14 Energy Capacity 280 Matter Stores 300 Matter Capacity 300 Sight Range 16 Terrain Scan Density 10 Armor Coverage 300 Resistance: TH 10 Evasion (%) 45 Targeting Accuracy 8 Armor Integrity Analysis 40 Recoil Reduction 3 Offensive Hacking 10 Item Schematics ----------------- None Robot Schematics ------------------ None Fabricated ------------ Nothing Alien Tech Used ----------------- None Achievements -------------- None Challenges ------------ None Game ------ Seed TripodAntimatterTearclaws Manual? 0 Play Time 01:07:21 Cumulative 276.5 hours Start 2024.09.02 @ 21:04:02 End 2024.09.03 @ 15:09:10 Sessions 3 Manual Loads 0 Difficulty Rogue Special Mode None Game No. 137 Rogue 137 Adventurer 0 Explorer 0 Win Type - Total 8 Types 4/1/3/0/0/0/0/0/0 Lore% 76 Gallery% 85 Achievement% 71 Wizard Run 0 Options --------- Layout 0 ASCII 0 Keyboard 0 Movement Mouse Keybinds 0 Fullscreen 2 Font 18/SmallcapsGlow Map View 76x50 Zoom Use 0% Tactical HUD 1 Map Filters NONE Filters NONE Steam 1 RUN: 67742403-2aef-438e-9dd8-2b8d75c319df